bitfinex/quotes_SOLUSD_20251207
["timestamp","ask_amount","ask_price","bid_price","bid_amount"]
[1765116091700,0.67,131.84,131.79,7.587748]
[1765116091899,0.67,131.84,131.81,0.72]
[1765116092631,8.25543451,131.84,131.81,0.72]
[1765116093924,104.3,131.83,131.81,0.72]
[1765116095727,104.3,131.83,131.81,8.30664122]
[1765116096100,104.3,131.83,131.82,0.72]
[1765116097628,104.3,131.83,131.82,8.30610226]
[1765116098214,104.3,131.83,131.82,31.08255141]
[1765116099439,0.2,131.86,131.82,58.85775198]
[1765116099615,0.2,131.86,131.84,7.58495145]
[1765116100039,0.2,131.86,131.85,0.72]
[1765116102036,0.2,131.86,131.85,24.61324018]
[1765116102432,0.2,131.86,131.85,47.38450284]
[1765116102611,0.2,131.86,131.85,56.19444776]
[1765116104046,0.2,131.86,131.85,47.38450284]
[1765116104621,0.2,131.86,131.85,23.49126266]
[1765116105045,0.2,131.86,131.85,0.72]
[1765116109958,0.87,131.86,131.83,0.72]
[1765116110533,0.2,131.86,131.83,0.72]
[1765116111661,0.2,131.86,131.84,7.58495145]
[1765116112462,0.2,131.86,131.85,0.72]
[1765116115635,0.2,131.86,131.85,24.61324018]
[1765116116035,0.2,131.86,131.85,27.64940853]
[1765116117236,0.2,131.86,131.85,24.61324018]
[1765116121062,0.2,131.86,131.84,7.58472483]
[1765116121265,0.2,131.86,131.84,8.29472483]
[1765116121635,0.2,131.86,131.84,7.58472483]
[1765116121840,0.2,131.86,131.85,0.71]
[1765116122766,0.2,131.86,131.84,7.58472483]
[1765116122949,0.2,131.86,131.84,8.29472483]
[1765116123866,0.2,131.86,131.84,7.58472483]
[1765116124093,0.2,131.86,131.85,0.71]
[1765116125050,0.2,131.86,131.84,7.58472483]
[1765116125247,0.2,131.86,131.84,8.29472483]
[1765116125554,0.89,131.86,131.83,7.58533275]
[1765116125740,0.89,131.86,131.82,32.94483538]
[1765116125943,0.69,131.85,131.82,32.23483538]
[1765116126175,0.69,131.85,131.82,32.94483538]
[1765116126973,0.69,131.85,131.82,32.23483538]
[1765116127480,0.69,131.85,131.83,0.71]
[1765116128049,0.69,131.85,131.82,32.94483538]
[1765116128971,0.69,131.85,131.82,32.23483538]
[1765116129159,0.69,131.85,131.83,0.71]
[1765116130786,0.69,131.85,131.82,32.23483538]
[1765116130969,0.69,131.85,131.82,32.94483538]
[1765116131345,0.69,131.85,131.83,0.71]
[1765116131958,0.69,131.85,131.82,32.94483538]
[1765116132477,0.69,131.85,131.83,0.71]
[1765116132661,0.69,131.85,131.82,32.94483538]
[1765116132863,0.69,131.85,131.83,0.71]
[1765116133180,8.27454324,131.85,131.81,7.58652596]
[1765116133376,8.27454324,131.85,131.82,0.71]
[1765116133584,0.69,131.84,131.82,0.71]
[1765116134181,0.69,131.84,131.81,8.29652596]
[1765116134578,0.69,131.84,131.81,0.71]
[1765116134784,8.27513881,131.84,131.8,15.92710098]
[1765116134960,8.27513881,131.84,131.8,9.05]
[1765116135163,0.69,131.83,131.8,9.05]
[1765116136558,8.27556031,131.83,131.8,9.05]
[1765116137084,0.69,131.82,131.8,9.05]
[1765116137268,0.69,131.82,131.77,56.71994059]
[1765116137269,0.69,131.82,131.77,8.29884614]
[1765116137658,0.69,131.82,131.77,7.58884614]
[1765116138378,7.58667779,131.81,131.77,8.29884614]
[1765116139387,0.69,131.8,131.77,8.29884614]
[1765116140100,7.58552681,131.83,131.78,0.71]
[1765116140386,104.99,131.85,131.8,16.308864]
[1765116140590,0.72,131.84,131.8,16.308864]
[1765116140771,0.72,131.84,131.81,0.7]
[1765116142886,0.72,131.84,131.81,8.28667699]
[1765116143391,8.30511831,131.84,131.8,24.59604641]
[1765116143886,0.72,131.83,131.8,24.59604641]
[1765116145866,0.72,131.83,131.81,0.7]
[1765116146184,0.72,131.83,131.8,24.59604641]
[1765116147186,0.72,131.83,131.81,0.7]
[1765116148381,0.72,131.83,131.8,23.89604641]
[1765116148695,0.72,131.83,131.8,24.59604641]
[1765116149794,8.30564508,131.83,131.8,16.308864]
[1765116150294,0.72,131.82,131.8,16.308864]
[1765116151291,112.60478062,131.85,131.81,0.7]
[1765116151497,0.72,131.84,131.81,0.7]
[1765116151794,0.72,131.84,131.81,8.28635492]
[1765116154278,0.72,131.84,131.81,7.58635492]
[1765116154601,8.30496388,131.84,131.8,24.59605633]
[1765116155004,0.72,131.83,131.8,24.59605633]
[1765116155177,120.22441772,131.85,131.8,23.89605633]
[1765116155378,0.72,131.84,131.81,0.7]
[1765116156286,8.30504205,131.84,131.8,23.89605633]
[1765116156490,8.30504205,131.84,131.8,24.59605633]
[1765116156796,0.72,131.83,131.8,24.59605633]
[1765116158605,0.72,131.84,131.81,0.7]
[1765116158983,120.22448071,131.85,131.81,0.7]
[1765116159220,104.3,131.85,131.81,0.7]
[1765116159715,105.02,131.85,131.81,0.7]
[1765116161011,105.02,131.85,131.82,7.58610226]
[1765116161699,105.02,131.85,131.82,8.28610226]
[1765116162105,105.02,131.85,131.82,7.58610226]
[1765116162479,105.02,131.85,131.82,8.28610226]
[1765116166314,0.72,131.84,131.82,8.28610226]
[1765116167416,0.72,131.84,131.81,7.58644913]
[1765116167586,0.72,131.84,131.8,16.308864]
[1765116167786,8.30497156,131.84,131.8,24.59563014]
[1765116168297,0.72,131.83,131.8,23.89563014]
[1765116168716,8.30564953,131.83,131.79,7.5877558]
[1765116168882,8.30564953,131.83,131.79,8.2877558]
[1765116169082,0.72,131.82,131.79,8.2877558]
[1765116170011,0.72,131.82,131.8,0.7]
[1765116172091,7.58572697,131.83,131.8,0.7]
[1765116172302,8.30572697,131.83,131.8,0.7]
[1765116176526,9.06,131.82,131.76,0.68]
[1765116176690,113.36,131.82,131.76,0.68]
[1765116176887,105.02,131.81,131.74,7.59051987]
[1765116177087,8.34,131.8,131.74,7.59051987]
[1765116177395,9.06,131.8,131.75,0.68]
[1765116177598,0.72,131.79,131.75,24.57888657]
[1765116177798,0.72,131.79,131.75,16.988864]
[1765116178195,0.72,131.79,131.76,0.68]
[1765116179199,8.30821361,131.79,131.76,0.68]
[1765116179731,0.71,131.78,131.76,0.68]
[1765116181120,7.58821361,131.79,131.76,0.68]
[1765116181415,8.29821361,131.79,131.76,0.68]
[1765116181630,15.92746171,131.8,131.76,8.26953019]
[1765116181796,16.63746171,131.8,131.76,8.26953019]
[1765116181995,16.63746171,131.8,131.77,0.71]
[1765116182417,111.88672411,131.81,131.77,0.71]
[1765116183219,112.59672411,131.81,131.77,0.71]
[1765116183624,112.59672411,131.81,131.77,8.29874632]
[1765116184418,112.59672411,131.81,131.78,0.71]
[1765116184419,104.3,131.81,131.78,0.71]
[1765116185199,104.3,131.81,131.78,9.05]
[1765116185424,104.3,131.81,131.79,0.71]
[1765116185721,104.3,131.81,131.79,8.2976307]
[1765116186325,104.3,131.81,131.8,0.71]
[1765116186511,8.29609449,131.83,131.8,0.71]
[1765116187435,112.59474043,131.85,131.8,8.29722731]
[1765116187811,111.88474043,131.85,131.81,0.71]
[1765116188016,112.59474043,131.85,131.81,0.71]
[1765116188210,0.71,131.84,131.81,0.71]
[1765116188634,0.71,131.84,131.81,8.29652316]
[1765116188943,111.88474043,131.85,131.78,16.308864]
[1765116188944,0.71,131.83,131.78,16.308864]
[1765116189113,0.71,131.83,131.73,8.61587537]
[1765116189114,128.948864,131.82,131.74,8.30022079]
[1765116189427,128.948864,131.82,131.74,0.71]
[1765116189626,0.71,131.81,131.74,0.71]
[1765116189828,8.34,131.8,131.74,0.71]
[1765116190231,0.71,131.79,131.74,0.71]
[1765116191011,8.29820017,131.79,131.74,8.30058124]
[1765116191436,0.71,131.78,131.75,0.71]
[1765116192441,9.05,131.8,131.75,0.71]
[1765116192624,9.05,131.8,131.72,8.34]
[1765116192625,9.51994492,131.79,131.72,0.71]
[1765116193030,35.6294172,131.78,131.72,0.71]
[1765116193439,0.71,131.77,131.72,0.71]
[1765116194428,7.58955676,131.76,131.72,0.71]
[1765116194847,0.71,131.75,131.72,0.71]
[1765116195923,7.58955676,131.76,131.72,0.71]
[1765116195924,8.29955676,131.76,131.72,0.71]
[1765116196340,0.71,131.75,131.72,0.71]
[1765116199738,112.59902033,131.77,131.72,8.30171521]
[1765116200136,112.59902033,131.77,131.73,0.71]
[1765116200434,0.71,131.76,131.73,8.30115436]
[1765116205128,0.71,131.76,131.74,0.66]
[1765116206852,0.71,131.76,131.73,8.25115436]
[1765116207053,8.29960752,131.76,131.72,23.90056401]
[1765116207225,8.29960752,131.76,131.72,24.56056401]
[1765116207425,0.71,131.75,131.72,24.56056401]
[1765116207626,7.58960752,131.76,131.73,0.66]
[1765116207627,8.29960752,131.76,131.73,0.66]
[1765116207828,113.37,131.75,131.7,0.66]
[1765116208326,0.71,131.74,131.7,0.66]
[1765116208647,9.07,131.74,131.7,8.25287567]
[1765116209050,16.66078968,131.74,131.7,8.25287567]
[1765116209249,0.71,131.73,131.7,8.25287567]
[1765116213756,8.30135936,131.73,131.69,7.69339411]
[1765116213957,0.71,131.72,131.69,8.35339411]
[1765116215459,8.30189301,131.72,131.69,0.1]
[1765116215646,8.36,131.71,131.69,0.1]
[1765116215849,9.07,131.71,131.69,0.1]
[1765116216044,0.71,131.7,131.69,0.1]
[1765116218847,8.30301442,131.7,131.69,0.1]
[1765116220359,8.36,131.71,131.69,0.1]
[1765116220568,0.71,131.7,131.69,0.1]
[1765116221971,9.07,131.71,131.69,0.1]
[1765116222469,0.71,131.7,131.69,0.1]
[1765116223444,8.30301442,131.7,131.69,0.1]
[1765116225165,15.95235123,131.72,131.69,0.76]
[1765116225473,16.66235123,131.72,131.69,0.76]
[1765116226246,0.71,131.71,131.69,0.76]
[1765116226652,0.71,131.71,131.69,0.1]
[1765116227606,7.59301442,131.7,131.69,0.1]
[1765116228079,8.30301442,131.7,131.69,0.1]
[1765116230777,16.66301442,131.7,131.69,0.1]
[1765116231478,113.10994492,131.69,131.66,0.2]
[1765116231682,16.40468935,131.67,131.66,0.2]
[1765116232181,17.12468935,131.67,131.66,0.2]
[1765116232483,33.43355335,131.67,131.66,0.2]
[1765116234784,33.43355335,131.67,131.65,0.1]
[1765116234965,9.08,131.66,131.65,0.1]
[1765116236274,25.4852662,131.66,131.65,0.1]
[1765116240293,16.67532128,131.66,131.65,0.1]
[1765116244094,25.4852662,131.66,131.65,0.1]
[1765116246782,16.67532128,131.66,131.65,0.1]
[1765116249786,7.59532128,131.66,131.65,0.81]
[1765116249991,8.36,131.66,131.65,0.81]
[1765116250284,9.06,131.66,131.65,0.1]
[1765116251385,16.65532128,131.66,131.65,0.1]
[1765116251806,25.4652662,131.66,131.65,0.1]
[1765116252105,25.4652662,131.66,131.64,0.1]
[1765116252106,41.7741302,131.66,131.64,0.1]
[1765116252289,0.7,131.65,131.64,0.1]
[1765116253004,9.50994492,131.65,131.64,0.1]
[1765116253377,17.10584313,131.65,131.64,0.1]
[1765116258023,7.59589821,131.65,131.64,0.1]
[1765116258322,7.59589821,131.65,131.64,0.81]
[1765116258615,15.95589821,131.65,131.64,0.81]
[1765116259813,8.36,131.65,131.64,0.81]
[1765116261018,7.59492584,131.67,131.64,0.81]
[1765116261218,15.95492584,131.67,131.64,0.81]
[1765116265324,8.36,131.67,131.64,8.40629032]
[1765116265617,15.9547626,131.67,131.64,0.81]
[1765116265924,8.36,131.67,131.65,0.69]
[1765116268615,104.3,131.68,131.65,8.28583932]
[1765116268816,8.36,131.69,131.66,0.69]
[1765116269619,16.67374781,131.69,131.66,0.69]
[1765116269945,0.72,131.68,131.65,0.69]
[1765116270117,0.72,131.68,131.64,0.1]
[1765116270531,7.59474443,131.67,131.64,0.79]
[1765116272029,8.36,131.69,131.64,0.79]
[1765116273637,15.95380593,131.69,131.64,8.38638075]
[1765116273939,7.59307075,131.7,131.64,27.37756883]
[1765116274244,7.59307075,131.7,131.65,0.69]
[1765116274840,28.06180205,131.71,131.64,7.69628769]
[1765116274841,8.31365556,131.69,131.64,7.69628769]
[1765116275018,8.31365556,131.69,131.65,0.69]
[1765116275613,0.72,131.68,131.65,0.69]
[1765116275815,9.08,131.68,131.65,0.69]
[1765116276119,9.08,131.68,131.64,0.79]
[1765116276313,0.72,131.67,131.64,0.79]
[1765116277645,7.59474443,131.67,131.64,0.79]
[1765116279626,8.31474443,131.67,131.61,14.47779917]
[1765116279832,105.02,131.66,131.61,14.47779917]
[1765116280134,105.02,131.66,131.57,8.80994492]
[1765116280330,26.58160552,131.67,131.58,8.46]
[1765116280331,113.38,131.65,131.58,8.46]
[1765116281140,120.97638435,131.65,131.59,7.59936165]
[1765116281737,120.97638435,131.65,131.6,0.69]
[1765116282334,120.97638435,131.65,131.6,8.28864229]
[1765116282743,120.97638435,131.65,131.61,0.69]
[1765116283450,8.31649087,131.64,131.61,0.69]
[1765116284344,105.02,131.63,131.59,0.69]
[1765116284523,112.66,131.62,131.58,0.1]
[1765116284729,104.3,131.61,131.58,0.1]
[1765116284927,0.72,131.61,131.58,0.1]
[1765116285158,0.72,131.6,131.58,0.1]
[1765116285342,8.36,131.59,131.58,0.1]
[1765116285545,15.95936165,131.59,131.58,0.1]
[1765116285855,15.95936165,131.59,131.58,1e-08]
[1765116285856,25.48930657,131.59,131.58,1e-08]
[1765116287247,41.79817057,131.59,131.58,1e-08]
[1765116287925,26.48930656,131.59,131.58,1e-08]
[1765116288154,25.48930657,131.59,131.58,1e-08]
[1765116288354,26.48930656,131.59,131.58,1e-08]
[1765116288930,8.80994492,131.55,131.5,0.1]
[1765116289132,8.80994492,131.53,131.5,0.1]
[1765116289346,25.11880892,131.53,131.5,0.1]
[1765116289550,7.60398448,131.51,131.5,0.1]
[1765116289756,15.96398448,131.51,131.5,0.1]
[1765116289948,16.68398448,131.51,131.46,7.89686677]
[1765116290148,0.72,131.5,131.44,7.707889]
[1765116290553,0.72,131.5,131.45,7.60734971]
[1765116291242,8.36,131.51,131.46,7.60677071]
[1765116291546,8.36,131.51,131.46,19.01719154]
[1765116292063,8.36,131.51,131.47,0.51]
[1765116293036,8.38,131.52,131.47,0.51]
[1765116293754,16.64344401,131.52,131.45,0.51]
[1765116294063,0.66,131.51,131.45,0.51]
[1765116294265,104.3,131.5,131.45,7.60732513]
[1765116294651,104.3,131.5,131.44,7.70786227]
[1765116294849,104.96,131.5,131.44,7.70786227]
[1765116295053,0.66,131.5,131.44,7.70786227]
[1765116295252,8.38,131.49,131.44,0.1]
[1765116295450,8.80994492,131.48,131.44,0.1]
[1765116295664,8.80994492,131.46,131.44,0.1]
[1765116295959,8.38,131.45,131.44,0.1]
[1765116296159,9.04,131.45,131.44,0.1]
[1765116296534,17.84994492,131.45,131.44,0.1]
[1765116297180,17.84994492,131.45,131.38,0.68718452]
[1765116297366,8.80994492,131.42,131.38,0.68718452]
[1765116297538,8.4,131.41,131.38,0.68718452]
[1765116297741,7.61035007,131.4,131.38,0.68718452]
[1765116297940,8.27035007,131.4,131.38,0.68718452]
[1765116298159,7.61035007,131.4,131.38,0.68718452]
[1765116298360,8.27035007,131.4,131.38,0.68718452]
[1765116298639,9.46994492,131.39,131.37,0.25256329]
[1765116298838,25.11880892,131.37,131.36,1.06275895]
[1765116299241,25.77880892,131.37,131.36,1e-08]
[1765116299445,25.77880892,131.37,131.3,0.33613573]
[1765116299446,16.308864,131.34,131.3,0.33613573]
[1765116299669,8.80994492,131.31,131.3,0.33613573]
[1765116299972,24.708864,131.31,131.3,0.33613573]
[1765116300174,8.4,131.34,131.3,1.05613573]
[1765116300637,9.11,131.34,131.3,0.33613573]
[1765116300835,0.71,131.33,131.3,0.33613573]
[1765116301367,16.8,131.32,131.27,1e-08]
[1765116301675,7.61448782,131.33,131.28,0.72]
[1765116301838,7.61287472,131.36,131.28,17.028864]
[1765116302033,7.61222037,131.37,131.29,16.308864]
[1765116302238,9.51994492,131.36,131.29,17.028864]
[1765116302438,8.42,131.35,131.29,17.028864]
[1765116302773,9.51994492,131.36,131.3,0.72]
[1765116303262,0.71,131.36,131.3,0.72]
[1765116303451,8.80994492,131.35,131.3,0.72]
[1765116303651,7.6138267,131.34,131.3,0.72]
[1765116303972,7.6138267,131.34,131.28,16.308864]
[1765116303973,0.71,131.33,131.28,16.308864]
[1765116304366,0.71,131.33,131.28,17.028864]
[1765116304866,0.71,131.33,131.28,0.72]
[1765116305044,16.0538267,131.34,131.29,0.72]
[1765116305374,9.51994492,131.33,131.27,1e-08]
[1765116305664,17.95994492,131.33,131.27,1e-08]
[1765116305870,7.61498629,131.32,131.27,0.72000001]
[1765116306169,16.05451446,131.33,131.27,0.72000001]
[1765116307586,35.8005306,131.33,131.27,0.72000001]
[1765116307960,9.51994492,131.32,131.27,1e-08]
[1765116308491,9.51994492,131.32,131.27,0.72000001]
[1765116308683,8.80994492,131.32,131.27,0.72000001]
[1765116308878,0.71,131.31,131.27,1e-08]
[1765116309260,25.11880892,131.28,131.27,1e-08]
[1765116309783,33.44611544,131.28,131.27,1e-08]
[1765116310981,8.44,131.3,131.27,1e-08]
[1765116311171,16.05628532,131.3,131.27,1e-08]
[1765116311372,16.76628532,131.3,131.27,1e-08]
[1765116311684,16.308864,131.28,131.27,1e-08]
[1765116311902,23.92617052,131.28,131.27,1e-08]
[1765116312060,41.17552465,131.3,131.27,1e-08]
[1765116312260,41.88552465,131.3,131.27,1e-08]
[1765116312584,8.44,131.3,131.27,1e-08]
[1765116312761,8.46,131.32,131.27,0.72000001]
[1765116313171,38.06225606,131.37,131.28,24.768864]
[1765116313172,7.61324704,131.35,131.28,24.768864]
[1765116313365,7.61287945,131.36,131.28,24.768864]
[1765116313565,7.61287945,131.36,131.29,0.72]
[1765116313782,7.61287945,131.36,131.3,8.46]
[1765116313958,7.61287945,131.36,131.3,16.07574736]
[1765116314161,7.61287945,131.36,131.31,0.72]
[1765116315772,16.42203291,131.37,131.31,0.72]
[1765116316176,7.61208799,131.37,131.31,8.33527758]
[1765116316683,7.61208799,131.37,131.32,0.72]
[1765116317186,17.26994492,131.39,131.32,8.33492556]
[1765116317558,8.46,131.39,131.33,0.72]
[1765116317983,8.32044053,131.4,131.34,8.46]
[1765116318178,7.61044053,131.4,131.34,8.46]
[1765116318487,7.61044053,131.4,131.35,0.72]
[1765116318991,19.02023329,131.44,131.35,0.72]
[1765116319163,26.62826737,131.44,131.38,7.6115086]
[1765116319367,7.60803408,131.44,131.39,0.72]
[1765116319682,104.3,131.43,131.39,0.72]
[1765116320392,8.31701933,131.46,131.39,0.72]
[1765116320588,0.2,131.47,131.39,0.72]
[1765116320589,7.80634806,131.47,131.39,0.72]
[1765116320889,0.2,131.47,131.41,16.308864]
[1765116321090,0.2,131.47,131.43,7.60861294]
[1765116321275,0.2,131.47,131.44,0.7]
[1765116322061,0.2,131.47,131.46,16.308864]
[1765116322590,0.2,131.47,131.46,25.468864]
[1765116322894,7.60283956,131.53,131.46,25.468864]
[1765116323087,7.60283956,131.53,131.47,0.7]
[1765116323277,7.60283956,131.53,131.48,7.6057195]
[1765116323664,7.60283956,131.53,131.49,0.7]
[1765116323864,8.46,131.54,131.49,0.7]
[1765116324280,0.7,131.53,131.49,0.7]
[1765116324481,36.1162019,131.55,131.49,0.7]
[1765116324693,8.30207607,131.55,131.49,0.7]
[1765116324875,7.60120604,131.56,131.49,0.7]
[1765116325272,7.60120604,131.56,131.5,7.60456273]
[1765116325693,7.60120604,131.56,131.51,0.7]
[1765116327106,7.60051683,131.57,131.51,0.7]
[1765116327477,7.60051683,131.57,131.51,8.30382158]
[1765116327898,7.60051683,131.57,131.52,0.7]
[1765116328106,8.80994492,131.55,131.49,17.008864]
[1765116328273,8.80994492,131.55,131.49,25.448864]
[1765116328473,9.50994492,131.55,131.49,25.448864]
[1765116328680,9.50994492,131.55,131.5,0.7]
[1765116329107,7.60225026,131.54,131.5,0.7]
[1765116329426,8.30175182,131.55,131.5,0.7]
[1765116329586,0.7,131.54,131.5,0.7]
[1765116329787,26.60593273,131.55,131.5,0.7]
[1765116330018,27.30593273,131.55,131.5,0.7]
[1765116330208,0.7,131.54,131.5,0.7]
[1765116331208,7.60282825,131.53,131.5,0.7]
[1765116336444,7.60225026,131.54,131.5,0.7]
[1765116336600,8.30177416,131.55,131.5,8.30443363]
[1765116337014,8.30177416,131.55,131.51,0.7]
[1765116337493,7.60126598,131.56,131.51,0.7]
[1765116338729,7.60040941,131.58,131.52,7.60340632]
[1765116338928,7.60040941,131.58,131.52,16.04340632]
[1765116339099,16.03937081,131.59,131.53,0.7]
[1765116339305,7.59890336,131.6,131.53,0.7]
[1765116339504,7.59762953,131.62,131.55,16.308864]
[1765116339830,0.7,131.65,131.56,8.44]
[1765116340132,7.59532128,131.66,131.57,8.80994492]
[1765116340301,7.59532128,131.66,131.57,25.81880892]
[1765116340632,7.59532128,131.66,131.61,7.59820682]
[1765116341024,7.59532128,131.66,131.62,0.7]
[1765116341216,0.7,131.65,131.59,0.7]
[1765116342032,26.58362448,131.66,131.59,0.7]
[1765116342235,27.28362448,131.66,131.59,0.7]
[1765116342412,27.28362448,131.66,131.59,8.29928846]
[1765116342616,7.59647523,131.64,131.59,8.29928846]
[1765116342824,7.59647523,131.64,131.6,0.7]
[1765116343015,0.7,131.63,131.59,0.7]
[1765116343331,0.7,131.63,131.6,0.7]
[1765116343708,0.7,131.63,131.58,16.7398077]
[1765116344020,0.7,131.63,131.59,0.7]
[1765116344801,8.29748148,131.63,131.59,0.7]
[1765116345508,8.29748148,131.63,131.56,35.31107117]
[1765116345509,0.7,131.62,131.56,16.308864]
[1765116346611,0.7,131.62,131.55,0.7]
[1765116347132,7.59820682,131.61,131.55,8.30159524]
[1765116347631,7.59820682,131.61,131.56,0.7]
[1765116348008,8.29820682,131.61,131.56,0.7]
[1765116348409,18.99493101,131.62,131.56,0.7]
[1765116348722,7.59705234,131.63,131.58,16.308864]
[1765116349106,7.59705234,131.63,131.59,0.7]
[1765116349531,8.29705234,131.63,131.59,0.7]
[1765116349844,7.59705234,131.63,131.59,0.7]
[1765116350227,7.59621537,131.65,131.59,25.448864]
[1765116350608,7.59621537,131.65,131.6,8.30878419]
[1765116351009,7.59621537,131.65,131.61,0.71]
[1765116351246,0.2,131.67,131.61,0.71]
[1765116352424,0.2,131.67,131.62,7.59762953]
[1765116352624,0.2,131.67,131.63,8.44]
[1765116352824,0.2,131.67,131.63,9.15]
[1765116353043,0.2,131.67,131.64,0.71]
[1765116353246,7.79492844,131.67,131.64,0.71]
[1765116353739,0.66,131.66,131.61,0.71]
[1765116354048,0.66,131.66,131.59,8.30922136]
[1765116354339,7.59589821,131.65,131.6,0.71]
[1765116355014,27.25564374,131.65,131.6,0.71]
[1765116356341,26.58564374,131.65,131.6,0.71]
[1765116356518,27.25564374,131.65,131.6,0.71]
[1765116356719,0.67,131.64,131.59,0.72]
[1765116357036,0.67,131.64,131.58,32.34860351]
[1765116357216,0.67,131.64,131.58,33.06860351]
[1765116358522,7.59705234,131.63,131.58,33.06860351]
[1765116358939,8.26705234,131.63,131.59,0.72]
[1765116360319,8.26705234,131.63,131.59,8.31920411]
[1765116360633,7.59705234,131.63,131.59,0.72]
[1765116360843,0.67,131.62,131.58,16.308864]
[1765116361046,9.11,131.62,131.55,8.32152353]
[1765116361219,9.11,131.62,131.56,7.60105717]
[1765116361555,9.11,131.62,131.56,8.32105717]
[1765116361841,9.11,131.62,131.57,8.32041132]
[1765116362216,16.70814941,131.62,131.58,0.72]
[1765116363053,0.67,131.61,131.56,8.32096249]
[1765116363212,0.67,131.61,131.56,0.72]
[1765116363640,8.80994492,131.6,131.53,0.72]
[1765116363956,8.80994492,131.58,131.51,8.32345416]
[1765116364242,7.60051683,131.57,131.52,0.72]
[1765116364417,8.27051683,131.57,131.52,0.72]
[1765116365747,0.67,131.56,131.5,24.633274]
[1765116366053,8.44,131.59,131.53,16.308864]
[1765116366214,0.67,131.58,131.53,16.308864]
[1765116366414,0.67,131.58,131.53,17.028864]
[1765116366643,0.67,131.58,131.54,0.72]
[1765116366959,25.78880892,131.58,131.51,8.32384162]
[1765116367482,27.27180891,131.57,131.51,8.32384162]
[1765116367777,17.24994492,131.56,131.48,8.32530641]
[1765116367953,17.91994492,131.56,131.48,8.32530641]
[1765116368149,8.80994492,131.54,131.48,0.72]
[1765116368358,8.44,131.53,131.48,8.32567623]
[1765116368547,9.11,131.53,131.48,8.32567623]
[1765116368749,0.67,131.52,131.48,8.32567623]
[1765116369761,8.27350101,131.52,131.47,7.60626427]
[1765116370066,8.27350101,131.52,131.47,0.72]
[1765116370241,0.67,131.51,131.47,0.72]
[1765116370643,0.67,131.51,131.44,0.72]
[1765116370861,0.67,131.51,131.47,7.6058632]
[1765116371043,0.67,131.51,131.47,8.3258632]
[1765116371755,8.27409994,131.51,131.47,8.3258632]
[1765116371951,8.27409994,131.51,131.44,19.01891713]
[1765116371952,8.27409994,131.51,131.45,0.72]
[1765116372164,0.67,131.5,131.45,0.72]
[1765116372549,0.67,131.5,131.45,8.32702304]
[1765116372851,0.67,131.5,131.46,7.60668856]
[1765116373059,0.67,131.5,131.47,7.60625049]
[1765116373370,0.67,131.5,131.46,8.32677919]
[1765116374171,8.27472001,131.5,131.45,7.60731829]
[1765116374566,0.67,131.49,131.45,8.32731829]
[1765116376162,8.27562198,131.49,131.45,0.72]
[1765116377653,8.27562198,131.49,131.45,8.32731344]
[1765116378377,0.67,131.49,131.45,8.32731344]
[1765116379678,7.60475998,131.5,131.46,0.72]
[1765116379862,8.27475998,131.5,131.46,0.72]
[1765116380459,7.60408305,131.51,131.46,8.32649514]
[1765116380965,7.60408305,131.51,131.47,0.66]
[1765116381173,0.72,131.5,131.45,8.26737538]
[1765116381554,0.72,131.5,131.45,7.60737538]
[1765116381754,0.72,131.5,131.45,8.26737538]